Cogmind - Beta 10.2 @@@ ROGUE MODE // 2021.10.01 @ 17:49:58 Player: OR-2NL Result: Self-destructed Performance ------------- Evolutions (3) 1500 Regions Visited (14) 2800 Robots Destroyed (206) 1030 Value Destroyed (8283) 8283 Prototype IDs (50) 1000 Alien Tech Used (0) 0 Bonus (2777) 2777 TOTAL SCORE: 17390 Bonus ------- High Alert Combat Kills 766 Follower Combat Kills 68 Entered Garrisons 400 Used RIF Installer 1000 Aligned with FarCom 300 Met Data Miner 300 Friendly Fire -57 Cogmind --------- Core Integrity 440/700 Matter 300/300 Energy 290/290 System Corruption 5% Temperature Cool (0) Movement Treading (180) Ox1 Location -7/Data Miner Parts ------- > --- POWER (1) -------- Improved Deuterium Engine > --- PROPULSION (3) --- Medium Treads Heavy Treads > --- UTILITY (7) ------ Improved Cooling System High-capacity Storage Unit High-capacity Storage Unit Damper Plating Relay Coupler [Grunt] (31) > --- WEAPON (2) ------- Advanced EMP Blaster Remote Datajack > --- INVENTORY (20) --- Large Storage Unit Layered Medium Armor Plating Layered Medium Armor Plating Missile Launcher Missile Launcher Peak State ------------ > --- POWER ------------ Antimatter Reactor > --- PROPULSION ------- Medium Treads Heavy Treads > --- UTILITY ---------- Large Storage Unit High-capacity Storage Unit High-capacity Storage Unit Damper Plating System Backup Module > --- WEAPON ----------- Flak Gun Mini Assault Cannon > --- INVENTORY -------- Medium Treads Heavy Treads Improved Cooling System High-capacity Matter Pod Particle Charger Damper Plating Relay Coupler [Grunt] Relay Coupler [Behemoth] Heavy Ion Cannon Flak Gun Flak Gun Flak Gun Precision Assault Rifle Hypervelocity Coil Gun Assault Cannon Tri-rail Accelerator Advanced EMP Blaster Missile Launcher Missile Launcher Remote Datajack Heavy Pick Heavy Pick [Rating: 68] Favorites ----------- Power Reinforced Ion Engine Engine Reinforced Ion Engine Power Core Micro Fission Core Reactor Antimatter Reactor Propulsion Compact Wheel Treads Medium Treads Wheel Compact Wheel Utility Large Storage Unit Device Improved Cooling System Storage Large Storage Unit Processor Enhanced Optical Array Hackware Relay Coupler [NC] Protection Damper Plating Weapon Flak Gun Energy Gun EM Pulse Gun Energy Cannon Heavy Ion Cannon Ballistic Gun Flak Gun Ballistic Cannon Assault Cannon Launcher Advanced EMP Blaster Special Weapon Remote Datajack Piercing Weapon Heavy Pick Special Melee Weapon Improved Datajack Build | -11 -10 -10 -10 -9 -8 -8 -8 -8 -7 -7 -7 -7 -7 -7 ------- Run | Scr Mat Min Exi Min Mat Gar Mat Gar Fac Was Fac Low Low Dat Slots Evolved 6 | . . . . . 4 . . . 2 . . . . . Power . | . . . . . . . . . . . . . . . Propulsion 1 | . . . . . 1 . . . . . . . . . Utility 5 | . . . . . 3 . . . 2 . . . . . Weapon . | . . . . . . . . . . . . . . . Parts Attached 390 | 6 13 3 2 . 132 31 80 16 29 12 39 11 7 9 Power 17 | 1 1 . . . 4 2 2 1 . 2 1 1 1 1 Engine 13 | 1 1 . . . 3 2 2 1 . . 1 . 1 1 Core 2 | . . . . . 1 . . . . . . 1 . . Reactor 2 | . . . . . . . . . . 2 . . . . Propulsion 166 | 2 8 1 . . 74 16 49 7 4 2 2 . 1 . Treads 90 | . 4 . . . 39 8 25 5 4 2 2 . 1 . Leg . | . . . . . . . . . . . . . . . Wheel 76 | 2 4 1 . . 35 8 24 2 . . . . . . Hover . | . . . . . . . . . . . . . . . Flight . | . . . . . . . . . . . . . . . Utility 75 | 1 2 . 1 . 18 2 8 2 9 4 20 2 2 4 Device 25 | . . . . . 5 . 1 . 2 1 13 1 2 . Storage 16 | 1 2 . 1 . 7 . . . . 1 2 . . 2 Processor 2 | . . . . . . . . . 2 . . . . . Hackware 10 | . . . . . . . 2 1 2 . 4 . . 1 Protection 22 | . . . . . 6 2 5 1 3 2 1 1 . 1 Artifact . | . . . . . . . . . . . . . . . Weapon 132 | 2 2 2 1 . 36 11 21 6 16 4 16 8 3 4 Energy Gun 6 | 1 . . . . 5 . . . . . . . . . Energy Cannon 26 | . . 1 . . 4 4 7 2 1 . 5 1 1 . Ballistic Gun 60 | 1 2 1 . . 23 6 9 . 6 1 6 4 1 . Ballistic Cannon 10 | . . . . . . . 1 1 4 2 2 . . . Launcher 19 | . . . 1 . 4 1 2 3 2 . 2 2 1 1 Special Weapon 8 | . . . . . . . 1 . 3 1 1 1 . 1 Impact Weapon . | . . . . . . . . . . . . . . . Slashing Weapon . | . . . . . . . . . . . . . . . Piercing Weapon 2 | . . . . . . . . . . . . . . 2 Special Melee Weapon 1 | . . . . . . . 1 . . . . . . . Unidentified Prototypes 11 | . . . . . 7 . . . 1 1 2 . . . Parts Lost 15 | . 2 . . . 2 . 4 1 5 . . 1 . . Power . | . . . . . . . . . . . . . . . Propulsion 3 | . . . . . . . 1 1 1 . . . . . Utility 6 | . . . . . 1 . 1 . 3 . . 1 . . Weapon 6 | . 2 . . . 1 . 2 . 1 . . . . . Highest Loss Streak 2 | . 2 . . . 1 . 2 1 2 . . 1 . . Average Slot Usage (%) 88 | . 93 100 100 100 98 90 92 89 95 89 78 75 76 69 Engine 6 | . 14 14 14 14 7 9 8 9 7 . . 3 . 7 Reactor 1 | . . . . . . . . . . 6 6 . . . Treads 14 | . 9 . . . 14 16 13 24 22 17 15 15 15 15 Wheel 7 | . 18 28 28 28 12 10 13 2 . . . . . . Device 3 | . . . . . 7 . . . 1 . 6 7 7 7 Storage 25 | . 22 28 28 28 27 27 27 27 23 28 23 23 23 14 Processor 1 | . . . . . . . . . 12 6 . . . . Hackware 1 | . . . . . . . 2 . 4 6 3 . . 2 Protection 6 | . . . . . 9 9 9 8 6 6 5 7 7 6 Energy Cannon 1 | . . . . . . 1 2 1 . . 3 2 2 . Ballistic Gun 11 | . 18 27 26 14 16 16 14 3 8 1 8 8 8 . Ballistic Cannon 1 | . . . . . . . . 6 4 2 1 . . . Launcher 1 | . . . 1 14 . . . 6 . . . 1 4 2 Naked Turns . | . . . . . . . . . . . . . . . Heaviest Build 155 | 12 40 44 57 57 100 102 103 106 102 148 155 148 152 152 Greatest Support 98 | 26 40 32 32 32 76 70 70 65 84 98 98 98 98 98 Greatest Overweight (x) 6 | . 1 1 1 1 4 4 6 4 2 1 2 2 1 1 Average Overweight (x) 1 | . . 1 1 1 2 2 2 1 1 1 . 1 1 . Largest Inventory Capacity 30 | 6 16 16 18 18 24 24 24 24 24 30 26 26 26 26 Average Capacity 23 | 5 11 16 17 18 23 24 24 24 24 29 25 26 26 18 Most Carried 30 | 4 11 14 18 18 24 24 24 24 24 30 26 26 26 26 Average Carried 22 | 2 7 11 17 18 23 23 23 23 23 27 24 25 25 13 Final Capacity 26 | 6 16 16 18 18 24 24 24 24 24 24 26 26 26 20 Final Carried 26 | 4 8 14 18 18 24 24 23 24 23 24 26 26 26 5 Class Distribution -------------------- 65% | Hauler-Mutant 15% | Bothacker-Mutant 14% | Mutant Dominant Class ---------------- Mutant | -10/Materials Mutant | -10/Mines Mutant | -10/Exiles Mutant | -9/Mines Hauler-Mutant | -8/Materials Hauler-Mutant | -8/Garrison Hauler-Mutant | -8/Materials Hauler-Mutant | -8/Garrison Bothacker-Mutant | -7/Factory Hauler-Mutant | -7/Waste Hauler-Mutant | -7/Factory Hauler-Mutant | -7/Lower Caves Hauler-Mutant | -7/Lower Caves Mutant | -7/Data Miner Resources | -11 -10 -10 -10 -9 -8 -8 -8 -8 -7 -7 -7 -7 -7 -7 ----------- Run | Scr Mat Min Exi Min Mat Gar Mat Gar Fac Was Fac Low Low Dat Matter Collected 7917 | 189 235 46 10 . 2076 681 1400 566 613 470 869 400 228 134 Remotely . | . . . . . . . . . . . . . . . Salvage Created 9598 | . 625 77 . . 2191 583 1624 1044 523 631 842 685 517 256 Parts 433 | . 27 2 . . 116 36 97 49 25 11 34 20 13 3 Haulers Intercepted 9 | . 2 . . . 4 . 2 . 1 . . . . . Recyclers Shooed 8 | . 1 1 . . 5 . . . . . 1 . . . Parts Field Recycled . | . . . . . . . . . . . . . . . Retrieved Matter . | . . . . . . . . . . . . . . . Parts Self-Destructed 22 | . . . . . . . . . . . . 16 6 . Prevented 10 | . . . . . . . . . . . . 4 6 . Kills | -11 -10 -10 -10 -9 -8 -8 -8 -8 -7 -7 -7 -7 -7 -7 ------- Run | Scr Mat Min Exi Min Mat Gar Mat Gar Fac Was Fac Low Low Dat Combat Hostiles Destroyed 172 | . 7 . . . 37 18 33 27 9 2 14 14 8 3 Melee 2 | . . . . . . . 2 . . . . . . . Guns 100 | . 7 . . . 26 15 23 3 5 2 11 7 1 . Cannons 13 | . . . . . 2 . 4 5 2 . . . . . AOE 46 | . . . . . 7 3 4 17 2 . 2 6 5 . Classes Destroyed 15 | . 5 . . . 5 1 1 . 1 1 . 1 . . Worker 2 | . 1 . . . 1 . . . . . . . . . Builder 3 | . . . . . 3 . . . . . . . . . Hauler 9 | . 2 . . . 4 . 2 . 1 . . . . . Recycler 10 | . 3 1 . . 3 . 2 . 1 . . . . . Minesweeper 2 | . . . . . . . . . . . . 1 1 . Operator 5 | . . . . . 1 . 1 1 1 . 1 . . . Watcher 3 | . . . . . 2 . . . . . 1 . . . Swarmer 39 | . 3 . . . 7 7 8 8 . . . 6 . . Grunt 70 | . 4 . . . 18 6 9 14 5 . 6 1 7 . Brawler 12 | . . . . . . 3 3 1 . . . 4 1 . Duelist 3 | . . . . . . . 1 . 1 . . 1 . . Sentry 33 | . . . . . 10 2 12 2 1 . 4 2 . . Hunter 6 | . . . . . 2 . . 2 1 . 1 . . . Programmer 4 | . . . . . . . . . 1 . 3 . . . Compactor 2 | . . . . . . . . . . 2 . . . . Enhanced Grunt 3 | . . . . . . . . . . . . . . 3 Best Kill Streak 14 | . 8 1 . . 14 3 4 7 4 1 6 4 4 3 Combat Bots Only 9 | . 3 . . . 9 3 4 7 4 1 6 4 4 3 Max Kills in Single Turn 4 | . 2 1 . . 4 2 3 3 3 1 2 3 1 1 Gunslinging . | . . . . . . . . . . . . . . . Exploded 3 | . . . . . 3 2 3 3 2 . 2 3 1 . Melee 1 | . . . . . . . 1 . . . . . . . Uniques/NPCs Destroyed . | . . . . . . . . . . . . . . . Combat | -11 -10 -10 -10 -9 -8 -8 -8 -8 -7 -7 -7 -7 -7 -7 -------- Run | Scr Mat Min Exi Min Mat Gar Mat Gar Fac Was Fac Low Low Dat Damage Taken 10028 | . 498 . . . 2008 812 2015 1040 1428 . 965 806 223 233 Core 765 | . 82 . . . 193 71 121 38 135 . 67 58 . . Absorbed by Shields 90 | . . . . . 90 . . . . . . . . . Reduced by Siege Mode 21 | . . . . . . . . . . . 16 5 . . Core Remaining (%) 63 | 100 . . . 67 . . . 23 . . . . . . Volleys Fired 627 | . 39 5 2 . 141 54 122 40 55 19 77 32 35 6 Largest 2 | . 2 2 1 . 2 2 2 2 2 1 2 2 2 1 Hottest 93 | . 60 40 30 . 86 75 88 75 75 30 80 56 93 36 Shots Fired 1031 | . 78 10 2 . 246 96 208 68 97 19 111 49 41 6 Gun 745 | . 78 10 . . 213 85 153 18 59 14 66 39 10 . Cannon 190 | . . . . . 24 8 44 27 30 . 40 . 17 . Launcher 73 | . . . 2 . 9 3 5 23 2 . 2 8 14 5 Special 23 | . . . . . . . 6 . 6 5 3 2 . 1 Kinetic 760 | . 44 10 . . 203 85 158 44 87 14 66 39 10 . Thermal 104 | . . . . . 18 8 18 1 2 . 40 . 17 . Explosive 20 | . . . 2 . 4 3 5 2 . . . 4 . . Electromagnetic 124 | . 34 . . . 21 . 21 21 2 . 2 4 14 5 Robot Hit Streak 33 | . 10 16 . . 31 33 27 12 19 10 20 12 2 2 Robot Miss Streak 11 | . 2 1 . . 2 1 2 1 1 2 3 11 2 1 Penetration Max . | . . . . . . . . . . . . . . . Secondary Targets 5 | . . . . . . 2 1 . . . 1 1 . . Max Gunslinging Chain 1 | . . . . . . 1 1 . . . 1 1 . . Shots Hit Robots 676 | . 48 9 . . 188 70 136 39 75 17 71 16 2 5 Core Hits 443 | . 27 3 . . 91 30 64 38 26 14 67 56 21 6 Critical Hits 3 | . . . . . 2 . 1 . . . . . . . Critical Kills 2 | . . . . . 2 . . . . . . . . . Critical Parts Destroyed 1 | . . . . . . . 1 . . . . . . . Melee Attacks 6 | . . . . . . . 4 . . . . . . 2 Impact . | . . . . . . . . . . . . . . . Slashing . | . . . . . . . . . . . . . . . Piercing 2 | . . . . . . . . . . . . . . 2 Sneak Attacks 6 | . . . . . . . 4 . . . . . . 2 Combat Hostiles . | . . . . . . . . . . . . . . . Follow-up Attacks 1 | . . . . . . . . . . . . . . 1 Damage Inflicted 18237 | . 689 65 . . 3959 1599 3098 2405 1501 557 1806 1364 822 372 Guns 10574 | . 579 65 . . 2618 1249 2088 276 919 409 1346 855 170 . Cannons 1801 | . . . . . 446 . 463 332 437 . 123 . . . Explosions 5402 | . 110 . . . 872 350 466 1797 128 . 337 509 650 183 Melee 189 | . . . . . . . . . . . . . . 189 Ramming 271 | . . . . . 23 . 81 . 17 148 . . 2 . Kinetic 11000 | . 295 65 . . 2442 1249 2205 608 1356 409 1346 855 170 . Thermal 693 | . 110 . . . 276 . . 92 37 . 123 . . 55 Explosive 1883 | . . . . . 388 350 466 404 . . . 275 . . Electromagnetic 4201 | . 284 . . . 830 . 346 1301 91 . 337 234 650 128 Impact . | . . . . . . . . . . . . . . . Slashing . | . . . . . . . . . . . . . . . Piercing 189 | . . . . . . . . . . . . . . 189 Highest Corruption 7 | . 3 3 3 3 4 4 4 7 1 1 1 5 5 5 Average Corruption 3 | . 2 3 3 3 3 4 4 5 1 1 1 5 5 5 Corruption Purged 1 | . . . . . . . . . . . 1 . . . Effects 243 | . . 6 9 1 49 14 62 38 2 8 4 20 20 10 Message Errors 62 | . . 1 4 . 6 4 16 11 1 4 1 5 3 6 Matter Fused 49 | . . 1 . 1 14 2 18 5 . . . 2 4 2 Heat Flow Errors 31 | . . 2 1 . 4 2 7 6 . . . 4 4 1 Energy Discharges 35 | . . . 2 . 8 4 4 5 . 3 2 4 2 1 Parts Rejected 2 | . . . . . 1 . 1 . . . . . . . Data Loss (minor) 28 | . . 2 2 . 6 . 8 5 . 1 . 2 2 . Data Loss (major) 2 | . . . . . . . . 1 . . . 1 . . Misfires 4 | . . . . . . . . 1 . . . 1 2 . Targeting Errors 24 | . . . . . 10 2 5 2 1 . 1 1 2 . Weapon Failures 6 | . . . . . . . 3 2 . . . . 1 . Overload Shots . | . . . . . . . . . . . . . . . Overflow Damage 262 | . 17 . . . 38 16 9 23 7 . 6 62 15 69 Projectiles 31 | . . . . . 15 . 3 . 7 . 6 . . . Explosions 162 | . 17 . . . 23 16 6 23 . . . 62 15 . Melee 69 | . . . . . . . . . . . . . . 69 Knockbacks 11 | . . . . . . . . 2 9 . . . . . Impact . | . . . . . . . . . . . . . . . Kinetic 10 | . . . . . . . . 2 8 . . . . . Secondary 1 | . . . . . . . . . 1 . . . . . Self-Inflicted Damage 477 | . 45 . . . 16 . . 383 27 . . . 6 . Shots 23 | . 2 . . . 1 . . 15 2 . . . 3 . Rammed 38 | . . . . . 2 . 10 . 3 22 . . 1 . Targets Rammed 42 | . . . . . 2 . 12 . 4 22 1 . 1 . Kicked . | . . . . . . . . . . . . . . . Crushed 4 | . . . . . . . 2 . 1 . 1 . . . Highest Temperature 567 | . 119 235 217 . 349 254 454 273 567 7 301 246 526 158 Average Temperature 100 | . 42 102 117 . 58 71 109 79 184 7 88 101 218 89 Received Heat Transfer 3070 | . 189 . . . 811 252 585 261 435 . 324 57 126 30 Effects 30 | . . . . . 1 . 5 . 16 . . . 8 . Shutdowns 5 | . . . . . 1 . 1 . 2 . . . 1 . Energy Bleed 3 | . . . . . . . . . 1 . . . 2 . Interference 7 | . . . . . . . 4 . 1 . . . 2 . Short Circuit 3 | . . . . . . . . . 3 . . . . . Damage (minor) 4 | . . . . . . . . . 3 . . . 1 . Damage (major) 8 | . . . . . . . . . 6 . . . 2 . Siege Activations 7 | . . . . . . . . . . . 3 3 . 1 Total Turns 80 | . . . . . . . . . . . 42 33 . 5 Longest Duration 31 | . . . . . . . . . . . 31 18 . 5 Robots Corrupted 11 | . . . . . 2 . . 2 . . 1 1 2 3 Combat Hostiles 11 | . . . . . 2 . . 2 . . 1 1 2 3 Parts Fried 38 | . 1 . . . 8 . 2 9 . . 5 1 5 7 Impact Corruptions . | . . . . . . . . . . . . . . . Robots Melted . | . . . . . . . . . . . . . . . Combat Hostiles . | . . . . . . . . . . . . . . . Parts Melted 1 | . . . . . . . . . . . 1 . . . Heat Transferred 1029 | . 200 . . . 481 . . 100 50 . 148 . . 50 Parts Sabotaged . | . . . . . . . . . . . . . . . Parts Stolen 1 | . . . . . . . . . . . . 1 . . Parts Stripped . | . . . . . . . . . . . . . . . Power Chain Reactions 8 | . 3 . . . 1 . . 2 1 . . . . 1 Missiles Intercepted . | . . . . . . . . . . . . . . . Alert | -11 -10 -10 -10 -9 -8 -8 -8 -8 -7 -7 -7 -7 -7 -7 ------- Run | Scr Mat Min Exi Min Mat Gar Mat Gar Fac Was Fac Low Low Dat Peak Influence 1093 | . 289 112 . 15 782 1093 621 973 664 13 470 . . . Initial 532 | . . 112 . . 5 508 532 207 510 13 . . . . Average 284 | . 183 53 . . 319 801 348 602 281 3 120 . . . Maximum Alert Level 3 | . 1 . . . 3 3 2 3 2 . 2 . . . Low Security (%) 51 | 100 59 100 . 100 37 . 19 . 63 100 91 . . . Level 1 15 | . 40 . . . 12 . 43 33 . . 3 . . . Level 2 23 | . . . . . 49 36 36 21 35 . 4 . . . Level 3 8 | . . . . . . 63 . 45 . . . . . . Level 4 . | . . . . . . . . . . . . . . . Level 5 . | . . . . . . . . . . . . . . . High Security . | . . . . . . . . . . . . . . . Max Security . | . . . . . . . . . . . . . . . Squads Dispatched 20 | . 1 1 . . 6 . 6 . 2 . 4 . . . Investigation 4 | . . 1 . . 1 . 1 . . . 1 . . . Extermination 3 | . . . . . . . . . 1 . 2 . . . Reinforcement 8 | . 1 . . . 3 . 2 . 1 . 1 . . . Assault . | . . . . . . . . . . . . . . . Garrison 5 | . . . . . 2 . 3 . . . . . . . Intercept . | . . . . . . . . . . . . . . . Construction Impeded 1 | . . . . . 1 . . . . . . . . . Haulers Reinforced . | . . . . . . . . . . . . . . . Stealth | -11 -10 -10 -10 -9 -8 -8 -8 -8 -7 -7 -7 -7 -7 -7 --------- Run | Scr Mat Min Exi Min Mat Gar Mat Gar Fac Was Fac Low Low Dat Distress Signals 14 | . 2 . . . 4 . 6 . 1 . 1 . . . Communications Jammed . | . . . . . . . . . . . . . . . Distress Signals . | . . . . . . . . . . . . . . . Times Spotted 243 | . 12 2 . 2 58 21 50 24 23 2 18 16 12 3 Peak Tracking Total 9 | . 5 1 9 2 5 7 7 7 4 1 4 7 4 2 Tactical Retreats 22 | . 3 . . . 2 4 3 1 5 . . 1 3 . Traps | -11 -10 -10 -10 -9 -8 -8 -8 -8 -7 -7 -7 -7 -7 -7 ------- Run | Scr Mat Min Exi Min Mat Gar Mat Gar Fac Was Fac Low Low Dat Traps Triggered 13 | . 2 . . . 2 2 . 6 1 . . . . . Indirectly . | . . . . . . . . . . . . . . . Trap Hack Attempts . | . . . . . . . . . . . . . . . Triggered . | . . . . . . . . . . . . . . . Disarmed . | . . . . . . . . . . . . . . . Reprogrammed . | . . . . . . . . . . . . . . . Reused 1 | . . . . . . . . . . . . . . 1 Traps Extracted . | . . . . . . . . . . . . . . . Installed 3 | . . . . . . . . . . . . . . 3 Triggered . | . . . . . . . . . . . . . . . Machines | -11 -10 -10 -10 -9 -8 -8 -8 -8 -7 -7 -7 -7 -7 -7 ---------- Run | Scr Mat Min Exi Min Mat Gar Mat Gar Fac Was Fac Low Low Dat Machines Disabled 17 | . 2 . 3 . 3 3 . 4 . . 2 . . . Max in Single Turn 2 | . 1 . 2 . 1 1 . 1 . . 2 . . . Garrison Access 2 | . . . . . . . . . . . 2 . . . Garrison Relay 5 | . . . . . . 2 . 3 . . . . . . Machines Sabotaged . | . . . . . . . . . . . . . . . Garrisons Compromised . | . . . . . . . . . . . . . . . Overloaded Fab Kills . | . . . . . . . . . . . . . . . Fab Network Shutdowns 1 | . . . . . . . . . . . 1 . . . Hacking | -11 -10 -10 -10 -9 -8 -8 -8 -8 -7 -7 -7 -7 -7 -7 --------- Run | Scr Mat Min Exi Min Mat Gar Mat Gar Fac Was Fac Low Low Dat Machines Accessed 44 | . 2 1 2 . 12 . 13 . . . 10 . . 4 Terminals 23 | . 1 . . . 8 . 9 . . . 5 . . . Fabricators 1 | . . . . . . . . . . . 1 . . . Repair Stations 4 | . . . . . 1 . 2 . . . 1 . . . Recycling Units 1 | . 1 . . . . . . . . . . . . . Scanalyzers 4 | . . . . . 2 . 1 . . . 1 . . . Garrison Access 4 | . . . . . 1 . 1 . . . 2 . . . Total Hacks 149 | . 4 1 2 . 39 . 49 . . . 24 . . 30 Successful 109 | . . 1 2 . 31 . 30 . . . 15 . . 30 Failed 40 | . 4 . . . 8 . 19 . . . 9 . . . Catastrophic 5 | . . . . . . . 4 . . . 1 . . . Database Lockouts . | . . . . . . . . . . . . . . . Manual 58 | . 2 . 1 . 17 . 27 . . . 11 . . . Terminals 68 | . 2 . . . 20 . 35 . . . 11 . . . Fabricators 5 | . . . . . . . . . . . 5 . . . Repair Stations 13 | . . . . . 4 . 6 . . . 3 . . . Recycling Units 2 | . 2 . . . . . . . . . . . . . Scanalyzers 18 | . . . . . 12 . 5 . . . 1 . . . Garrison Access 10 | . . . . . 3 . 3 . . . 4 . . . Terminal Hacks 59 | . . 1 2 . 10 . 13 . . . 3 . . 30 Record 12 | . . . 1 . . . . . . . . . . 11 Part Schematic 13 | . . . . . . . 2 . . . 1 . . 10 Robot Schematic 6 | . . . . . . . . . . . . . . 6 Robot Analysis 6 | . . . . . 3 . 3 . . . . . . . Prototype ID Bank 4 | . . . . . . . 1 . . . . . . 3 Open Door 1 | . . 1 . . . . . . . . . . . . Branch Access Points 2 | . . . . . 1 . . . . . 1 . . . Terminal Index 2 | . . . . . . . 1 . . . 1 . . . Alert Level 1 | . . . . . 1 . . . . . . . . . Unreport Threat 3 | . . . . . 1 . 2 . . . . . . . Locate Traps 5 | . . . . . 3 . 2 . . . . . . . Hauler Manifests 2 | . . . . . 1 . 1 . . . . . . . Zone Layout 1 | . . . . . . . 1 . . . . . . . EX-Prototype ID Bank 1 | . . . 1 . . . . . . . . . . . Fabricator Hacks 4 | . . . . . . . . . . . 4 . . . Load Schematic 2 | . . . . . . . . . . . 2 . . . Build 2 | . . . . . . . . . . . 2 . . . Repair Station Hacks 11 | . . . . . 3 . 6 . . . 2 . . . Scan Component 6 | . . . . . 2 . 3 . . . 1 . . . Repair 5 | . . . . . 1 . 3 . . . 1 . . . Recycling Unit Hacks . | . . . . . . . . . . . . . . . Scanalyzer 16 | . . . . . 11 . 5 . . . . . . . Insert Component 9 | . . . . . 6 . 3 . . . . . . . Analyze 7 | . . . . . 5 . 2 . . . . . . . Garrison Access Hacks 7 | . . . . . 1 . 2 . . . 4 . . . Unlock Access 3 | . . . . . 1 . 1 . . . 1 . . . Seal Access 2 | . . . . . . . . . . . 2 . . . Coupler Status 2 | . . . . . . . 1 . . . 1 . . . Unauthorized Hacks 12 | . . . . . 6 . 4 . . . 2 . . . Terminals 9 | . . . . . 5 . 4 . . . . . . . Track 3 | . . . . . 2 . 1 . . . . . . . Botnet 4 | . . . . . 2 . 2 . . . . . . . Operators 2 | . . . . . 1 . 1 . . . . . . . Fabricators 1 | . . . . . . . . . . . 1 . . . Siphon 1 | . . . . . . . . . . . 1 . . . Repair Stations . | . . . . . . . . . . . . . . . Recycling Units . | . . . . . . . . . . . . . . . Scanalyzers 1 | . . . . . . . . . . . 1 . . . Extract 1 | . . . . . . . . . . . 1 . . . Garrison Access 1 | . . . . . 1 . . . . . . . . . Reprogram 1 | . . . . . 1 . . . . . . . . . Data Cores Recovered 1 | . . . . . . . . . . . 1 . . . Used 1 | . . . . . . . . . . . 1 . . . Hacking Detections 30 | . 2 . . . 10 . 10 . . . 8 . . . Full Trace Events 2 | . 1 . . . . . 1 . . . . . . . Feedback Events . | . . . . . . . . . . . . . . . Feedback Blocked . | . . . . . . . . . . . . . . . Robot Schematics Acquired 6 | . . . . . . . . . . . . . . 6 Robots Built . | . . . . . . . . . . . . . . . Matter . | . . . . . . . . . . . . . . . Time . | . . . . . . . . . . . . . . . Total Robot Build Rating . | . . . . . . . . . . . . . . . Part Schematics Acquired 21 | . . . . . 5 . 4 . . . 2 . . 10 Parts Built 3 | . . . . . . . . . . . 3 . . . Matter 218 | . . . . . . . . . . . 218 . . . Time 146 | . . . . . . . . . . . 146 . . . Total Part Build Rating 11 | . . . . . . . . . . . 11 . . . Parts Repaired 5 | . . . . . 1 . 3 . . . 1 . . . Time 214 | . . . . . 44 . 142 . . . 28 . . . Parts Recycled . | . . . . . . . . . . . . . . . Recycled Matter . | . . . . . . . . . . . . . . . Retrieved Matter . | . . . . . . . . . . . . . . . Retrieved Components . | . . . . . . . . . . . . . . . Parts Scanalyzed 7 | . . . . . 5 . 2 . . . . . . . Part Schematics Acquired 7 | . . . . . 5 . 2 . . . . . . . Parts Damaged . | . . . . . . . . . . . . . . . Bothacking | -11 -10 -10 -10 -9 -8 -8 -8 -8 -7 -7 -7 -7 -7 -7 ------------ Run | Scr Mat Min Exi Min Mat Gar Mat Gar Fac Was Fac Low Low Dat Used RIF Installer 2 | . . . . . . 1 . 1 . . . . . . Program Shield 1 | . . . . . . . . 1 . . . . . . Robots Hacked 7 | . . . . . . . 2 . 1 2 1 . . 1 Non-combat 4 | . . . . . . . 2 . 1 . 1 . . . Combat 3 | . . . . . . . . . . 2 . . . 1 Robot Hacks Applied 17 | . . . . . . . 6 . 4 3 3 . . 1 parse_system 2 | . . . . . . . . . . 1 . . . 1 purge_threat 10 | . . . . . . . 4 . 4 . 2 . . . find_terminals 1 | . . . . . . . 1 . . . . . . . ignore_targets 2 | . . . . . . . . . . 2 . . . . formatsys_low 2 | . . . . . . . 1 . . . 1 . . . Relay Couplers Released 22 | . . . . . . 10 . 12 . . . . . . Machine Destruction 22 | . . . . . . 10 . 12 . . . . . . Attached 7 | . . . . . . . 2 1 2 . 1 . . 1 Robots Rewired 2 | . . . . . . . . . . . . 2 . . Allies Hacked . | . . . . . . . . . . . . . . . Hacks Repelled . | . . . . . . . . . . . . . . . Allies | -11 -10 -10 -10 -9 -8 -8 -8 -8 -7 -7 -7 -7 -7 -7 -------- Run | Scr Mat Min Exi Min Mat Gar Mat Gar Fac Was Fac Low Low Dat Total Allies 9 | . . 2 . . 3 . 1 . . . 1 2 . . Largest Group 3 | . . 2 2 . 3 3 1 1 . . 1 2 . . Highest-Rated Group 48 | . . 42 42 . 15 15 10 10 . . 26 48 . . Highest-Rated Ally 32 | . . 31 31 . 5 5 10 10 . . 26 32 . . Total Orders 4 | . . . . . . . . 2 . . 2 . . . STAY 2 | . . . . . . . . 1 . . 1 . . . FOLLOW 2 | . . . . . . . . 1 . . 1 . . . Ally Attacks 30 | . . . . . 11 11 . . . . . 8 . . Total Damage 218 | . . . . . 57 81 . . . . . 80 . . Kills 2 | . . . . . 1 1 . . . . . . . . Allies Corrupted . | . . . . . . . . . . . . . . . Allies Melted . | . . . . . . . . . . . . . . . Intel | -11 -10 -10 -10 -9 -8 -8 -8 -8 -7 -7 -7 -7 -7 -7 ------- Run | Scr Mat Min Exi Min Mat Gar Mat Gar Fac Was Fac Low Low Dat Robot Analysis Total 6 | . . . . . 3 . 3 . . . . . . . Derelict Logs Recovered 4 | . . 1 . 2 . . . . . . . . 1 . Drone Launches . | . . . . . . . . . . . . . . . Drone Recoveries . | . . . . . . . . . . . . . . . Exploration | -11 -10 -10 -10 -9 -8 -8 -8 -8 -7 -7 -7 -7 -7 -7 ------------- Run | Scr Mat Min Exi Min Mat Gar Mat Gar Fac Was Fac Low Low Dat Turns Passed 15329 | 47 372 845 583 54 2381 699 2179 1342 807 1364 2223 1244 711 478 Spaces Moved 8101 | 39 216 684 521 45 1187 333 1243 690 315 697 982 586 318 245 Core 2 | 2 . . . . . . . . . . . . . . Treads 4077 | . 21 . . . 176 66 113 558 315 697 982 586 318 245 Legs . | . . . . . . . . . . . . . . . Wheels 4022 | 37 195 684 521 45 1011 267 1130 132 . . . . . . Hover . | . . . . . . . . . . . . . . . Flight . | . . . . . . . . . . . . . . . Fastest Speed 50 | 50 90 100 110 110 120 130 120 130 160 180 160 180 180 160 Average Speed 149 | 87 103 106 110 110 132 139 130 171 181 180 179 180 180 169 Slowest Speed 250 | 90 160 110 110 110 250 250 178 225 200 180 200 200 180 180 Overloaded Moves . | . . . . . . . . . . . . . . . Propulsion Burnouts . | . . . . . . . . . . . . . . . Robots Hopped . | . . . . . . . . . . . . . . . Cave-ins Triggered . | . . . . . . . . . . . . . . . Exploration Rate (%) 60 | 3 31 99 89 26 96 52 91 86 7 97 30 72 55 77 Regions Visited 14 Branch Regions 6 Pre-discovered Areas 2 | . . . 1 . . . . . . . . . . 1 Known Exits Taken 3 | . . . . . 1 . 1 . . . 1 . . . Unknown Exits Taken 7 | 1 1 1 1 1 . . . . . . . 1 1 . Scrap Searched 6 | . . 1 . . . . . . . . . 2 3 . Spaces Dug 106 | . . . . . 4 . 29 5 1 . 26 27 14 . Terrain Destroyed 219 | . 9 . 6 . 30 12 66 8 5 . 27 33 14 9 Melee . | . . . . . . . . . . . . . . . Projectile 69 | . . . . . 5 . 18 . 5 . 27 . 14 . AOE 150 | . 9 . 6 . 25 12 48 8 . . . 33 . 9 Terrain Rammed . | . . . . . . . . . . . . . . . Walls Destroyed . | . . . . . . . . . . . . . . . Machines Disabled . | . . . . . . . . . . . . . . . Actions | -11 -10 -10 -10 -9 -8 -8 -8 -8 -7 -7 -7 -7 -7 -7 --------- Run | Scr Mat Min Exi Min Mat Gar Mat Gar Fac Was Fac Low Low Dat Total 10343 | 48 291 788 529 49 1752 470 1592 789 453 782 1346 727 415 312 Wait 753 | . 14 89 . 5 164 29 84 14 36 . 202 51 51 14 Move 8088 | 38 215 683 520 44 1186 332 1242 689 315 696 981 585 317 245 Hop . | . . . . . . . . . . . . . . . Pick Up 148 | 4 7 6 4 . 50 6 20 8 7 7 17 8 1 3 Fast Attach 58 | 6 1 1 . . 17 3 8 2 5 5 6 1 1 2 Attach 60 | . 2 . . . 14 2 11 3 5 4 11 3 1 4 Detach 45 | . . 1 . . 5 . 8 2 . 9 11 2 1 6 Swap 272 | . 10 2 2 . 101 26 61 11 19 3 22 7 5 3 Drop 189 | . 3 1 1 . 72 10 20 8 7 17 18 5 2 25 Fire 627 | . 39 5 2 . 141 54 122 40 55 19 77 32 35 6 Melee 5 | . . . . . . . 4 . . . . . . 1 Ram . | . . . . . . . . . . . . . . . Kick . | . . . . . . . . . . . . . . . Crush 42 | . . . . . 2 . 12 . 4 22 1 . 1 . Escape Stasis 20 | . . . . . . 8 . 12 . . . . . . Rewire 33 | . . . . . . . . . . . . 33 . . Trap 3 | . . . . . . . . . . . . . . 3 Miscellaneous . | . . . . . . . . . . . . . . . Route ------- -11/Scrapyard -10/Materials -10/Mines (discovered 3 exits: *Mat x2 / *Exi) -10/Exiles -9/Mines (discovered 2 exits: *Mat x2) -8/Materials (discovered 4 exits: [*Fac x3] / Gar) -8/Garrison -8/Materials (discovered 4 exits: [*Fac x3] / Gar) -8/Garrison (discovered 3 exits: [*Fac x3]) -7/Factory -7/Waste -7/Factory (discovered 3 exits: [*Fac] / *Low x2) -7/Lower Caves -7/Lower Caves -7/Data Miner (discovered 1 exit: [*Pro]) History --------- Turn | Location | Event 11 | -11/Scrapyard | Discovered new exit (range 16) 48 | -11/Scrapyard | Entered Materials 360 | -10/Materials | Build established: Mutant 385 | -10/Materials | Discovered new exit (range 12) 420 | -10/Materials | Entered Mines 421 | -10/Mines | Assembled infested the area 506 | -10/Mines | Met 8R-AWN 541 | -10/Mines | Identified exit to Materials 609 | -10/Mines | Discovered new exit (range 5) 712 | -10/Mines | Met a Derelict shopkeep closing up shop 740 | -10/Mines | Discovered exit to Materials (range 7) 1265 | -10/Mines | Entered Exiles 1265 | -10/Exiles | Accompanied by 2 allies 1295 | -10/Exiles | Led the pair of lost Derelicts to a safe place 1298 | -10/Exiles | Welcomed by 8R-AWN 1313 | -10/Exiles | Met EX-HEX 1383 | -10/Exiles | Met EX-DEC 1402 | -10/Exiles | Visited The Gauntlet 1510 | -10/Exiles | Learned location of Zion (-6) 1605 | -10/Exiles | Met EX-BIN 1632 | -10/Exiles | Aligned with FarCom system 1633 | -10/Exiles | Given EX-Vault access code 1682 | -10/Exiles | Opened EX-Vault 1705 | -10/Exiles | Warned to stay clear of 0b10 Research branches 1785 | -10/Exiles | Discovered new exit (range 11) 1818 | -10/Exiles | Attacked by the Exiles 1848 | -10/Exiles | Entered Mines 1867 | -9/Mines | Learned Materials stockpile data 1872 | -9/Mines | Discovered new exit (range 7) 1880 | -9/Mines | Learned Materials interactive machine intel 1894 | -9/Mines | Discovered new exit (range 8) 1902 | -9/Mines | Entered Materials 1902 | -8/Materials | Evolved 4 slots: Propulsion x1, Utility x3 1904 | -8/Materials | Loaded intel: 19 interactive machine locations 2192 | -8/Materials | Build established: Hauler-Mutant 2538 | -8/Materials | Discovered new exit (range 7) 2952 | -8/Materials | Destroyed 9 combat bots 3578 | -8/Materials | Discovered new exit (range 7) 4085 | -8/Materials | Repaired Imp. Medium Armor Plating? 4144 | -8/Materials | Discovered new exit (range 16) 4162 | -8/Materials | Garrison activated, responded to threat 4246 | -8/Materials | Identified exit to Garrison 4283 | -8/Materials | Entered Garrison 4283 | -8/Garrison | Accompanied by 3 allies 4290 | -8/Garrison | Installed Relay Interface Framework 4344 | -8/Garrison | Triggered checkpoint 4404 | -8/Garrison | Garrison Relay disabled 4846 | -8/Garrison | Triggered checkpoint 4850 | -8/Garrison | Garrison Relay disabled 4895 | -8/Garrison | Triggered checkpoint 4918 | -8/Garrison | Discovered new exit (range 14) 4982 | -8/Garrison | Entered Materials 5130 | -8/Materials | Build established: Bothacker-Mutant 5447 | -8/Materials | Identified exit to Garrison 5475 | -8/Materials | Garrison activated, responded to threat 5524 | -8/Materials | Core integrity fell below 50% 5849 | -8/Materials | Discovered new exit (range 4) 6203 | -8/Materials | Build established: Hauler-Mutant 6624 | -8/Materials | Discovered new exit (range 4) 6774 | -8/Materials | Repaired Hrd. Heavy Armor Plating? 6828 | -8/Materials | Repaired Enh. Autogun 6836 | -8/Materials | Repaired Arm. Treads? 7082 | -8/Materials | Discovered new exit (range 10) 7161 | -8/Materials | Entered Garrison 7161 | -8/Garrison | Accompanied by 1 ally 7190 | -8/Garrison | Triggered checkpoint 7233 | -8/Garrison | Garrison Relay disabled 7392 | -8/Garrison | Triggered checkpoint 7562 | -8/Garrison | Triggered checkpoint 7661 | -8/Garrison | Discovered new exit (range 12) 7727 | -8/Garrison | Triggered checkpoint 7824 | -8/Garrison | Discovered new exit (range 10) 7917 | -8/Garrison | Destroyed 7 combat bots 7969 | -8/Garrison | Discovered new exit (range 10) 7995 | -8/Garrison | Expanded RIF knowledge: Program Shield 8046 | -8/Garrison | Triggered checkpoint 8087 | -8/Garrison | Garrison Relay disabled 8298 | -8/Garrison | Triggered checkpoint 8376 | -8/Garrison | Build established: Bothacker-Mutant 8422 | -8/Garrison | Garrison Relay disabled 8503 | -8/Garrison | Entered Factory 8503 | -7/Factory | Evolved 2 slots: Utility x2 9043 | -7/Factory | Discovered new exit (range 17) 9310 | -7/Factory | Sucked down chute 9310 | -7/Factory | Entered Waste 9310 | -7/Waste | The area was eerily silent 9407 | -7/Waste | Found Unknown Protection 9410 | -7/Waste | A Compactor rumbled back to life 9411 | -7/Waste | Spotted C-40 Crusher 9483 | -7/Waste | Identified Damper Plating 9500 | -7/Waste | A Compactor rumbled back to life 9500 | -7/Waste | Spotted C-40 Crusher 9659 | -7/Waste | Build established: Hauler-Mutant 9682 | -7/Waste | Discovered new exit (range 12) 10362 | -7/Waste | Destroyed C-40 Crusher 10433 | -7/Waste | Destroyed C-40 Crusher 10503 | -7/Waste | Found Damper Plating 10674 | -7/Waste | Entered Factory 10691 | -7/Factory | Identified exit to Garrison 10779 | -7/Factory | Build established: Scavenger-Mutant 10945 | -7/Factory | Identified exit to Lower Caves 11239 | -7/Factory | Fabricated Hvy. Pick (x2) 11291 | -7/Factory | Fabricated Hcp. Storage Unit (x1) 11366 | -7/Factory | Local fabrication network quarantined 11429 | -7/Factory | Build established: Hacker-Mutant 11779 | -7/Factory | Build established: Hauler-Mutant 11799 | -7/Factory | Repaired Hvy. Treads 12752 | -7/Factory | Discovered new exit (range 14) 12897 | -7/Factory | Entered Lower Caves 12897 | -7/Lower Caves | Accompanied by 1 ally 13014 | -7/Lower Caves | Encountered a Warlord checkpoint 13400 | -7/Lower Caves | Attracted the attention of an 0b10 outpost 13792 | -7/Lower Caves | Flak Gun stolen by Master Thief 13885 | -7/Lower Caves | Attracted the attention of an 0b10 checkpoint 13939 | -7/Lower Caves | Spotted B-75 Beast 14076 | -7/Lower Caves | Discovered new exit (range 7) 14141 | -7/Lower Caves | Entered another Lower Caves area 14522 | -7/Lower Caves | Learned Factory terminal intel 14845 | -7/Lower Caves | Discovered new exit (range 5) 14852 | -7/Lower Caves | Entered Data Miner 14852 | -7/Data Miner | Discovered new exit (range 6) 14910 | -7/Data Miner | Met Data Miner 14955 | -7/Data Miner | Learned location of Section 7 (-2) 14955 | -7/Data Miner | Acquired the access code to Warlord's prototype stash 14988 | -7/Data Miner | Received God Mode back door access code from Data Miner 15198 | -7/Data Miner | Data Conduit disabled 15330 | -7/Data Miner | Self-destructed Last Messages --------------- 15209_ Enhanced Grunt system terminally corrupted. 15209_ Imp. Energy Well fried. 15209_ Neutron Cannon fried. 15209_ Adv. Heat Sink fried. 15211_ Enhanced Grunt system terminally corrupted. 15211_ Adv. Heat Sink fried. 15211_ Exp. Thermal Shield fried. 15213_ Activated siege mode. 15222_ Ended siege mode. 15226_ Enhanced Grunt system terminally corrupted. 15226_ Adv. Heat Sink fried. 15231_ Ended siege mode. 15238_ KP VO,JO>B&:X9GE HLFFHR92C1B4IUUWNGO 15244_ Acquired 88 matter. 15249_ Acquired 1 matter. 15252_ Acquired Lyr. Medium Armor Plating. 15292_ CFMY9IL&3JTPBFOOEV V%YJOOGLH 15307_ Acquired Hcp. Storage Unit. 15313_ System corrupted: Matter fused (-5). 15316_ Extracted 15 matter. Map ----- +----------------------------------------------------+ | ??????"""""""""""" ## ## ### #? | | ?????"""""""" "# < ##? | | ????""""""""" %% % ## | | ????"""""" ! = | | ????"""""" | | ????""""" / | | ????""""""/ | | ????"""""" """""""## | | ????""""""" " ###############? | | ?????"""""" """""###??????????????? | | ??????""""""" "#####????????????????? | | ??????######"## "#????????????????????? | | ???????????#"### "#????????????????????? | | ???????????#"### "#????????????????????? | | ???????????#"## "#????????????????????? | | ???????????#"## "#????????????????????? | | ?????????????# "#????????????????????? | | ?????????????### "#????????????????????? | | ???????????????# "##???????????????????? | | ??????????????## ""#???????????????????? | | ???????????#"## ""#???????????????????? | | ??????????##"#"X ""#???????????????????? | | ?????????"""""" ][&"####????????????????? | | ?????????#""""" &[!X"""""????????????????? | | ?????????###"#"X![&]"##"#????????????????? | | ???????????#?## *@*X""""#????????????????? | | ??????????????##=&[&"##"#????????????????? | | ???????????????#######???????????????????? | | ?????????????????????????????????????????? | | ?????????????????????????????????????????? | | ?????????????????????????????????????????? | | ?????????????????????????????????????????? | | ?????????????????????????????????????????? | | ?????????????????????????????????????????? | | ?????????????????????????????????????????? | | ?????????????????????????????????????????? | | ?????????????????????????????????????????? | | ?????????????????????????????????????????? | | ?????????????????????????????????????????? | | ?????????????????????????????????????????? | | ?????????????????????????????????????????? | | ?????????????????????????????????????????? | | ?????????????????????????????????????????? | | ?????????????????????????????????????????? | | | | | | | | | | | | | +----------------------------------------------------+ Best States ------------- Heat Dissipation 61 Energy Generation 21 Energy Capacity 325 Matter Stores 300 Matter Capacity 300 Sight Range 22 Terrain Scan Density 10 Armor Coverage 2400 Resistance: EM 90 Evasion (%) 42 Targeting Accuracy 8 Recoil Reduction 3 Particle Charging 15 Offensive Hacking 20 Defensive Hacking 10 Relay Coupler Types 32 Relay Coupler Value 1 Item Schematics ----------------- Adv. Signal Interpreter | -8/Materials | Scanalyzed Adv. Terrain Scanner | -8/Materials | Scanalyzed Med. Storage Unit | -8/Materials | Scanalyzed Imp. Utility Shielding | -8/Materials | Scanalyzed System Shield | -8/Materials | Scanalyzed Hcp. Storage Unit | -8/Materials | Hacked Adv. Sensor Array | -8/Materials | Hacked Adv. Terrain Scan Processor | -8/Materials | Scanalyzed Imp. Propulsion Shielding | -8/Materials | Scanalyzed Hvy. Pick | -7/Factory | Hacked Component Analysis Suite | -7/Factory | Extracted Combat Drone Bay | -7/Data Miner | Free Lgt. Regenerative Plating | -7/Data Miner | Free Cmb. Gravmag System | -7/Data Miner | Free Exp. Cesium-ion Thruster | -7/Data Miner | Free Exp. Sensor Array | -7/Data Miner | Free Exp. Terrain Scanner | -7/Data Miner | Free Exp. Terrain Scan Processor | -7/Data Miner | Free Exp. ECM Suite | -7/Data Miner | Free Cloaking Device | -7/Data Miner | Free Plasma Sword | -7/Data Miner | Free Robot Schematics ------------------ S-27 Virus | -7/Data Miner | Free G-50 Soldier | -7/Data Miner | Free G-67 Veteran | -7/Data Miner | Free L-41 Fighter | -7/Data Miner | Free I-36 Angel | -7/Data Miner | Free I-47 Archangel | -7/Data Miner | Free Fabricated ------------ Hvy. Pick | x2 | -7/Factory Hcp. Storage Unit | x1 | -7/Factory Alien Tech Used ----------------- None Achievements -------------- None Challenges ------------ None Game ------ Seed SpectralAlloyMapper Manual? 0 Play Time 02:48:41 Cumulative 405.1 hours Start 2021.09.29 @ 22:45:55 End 2021.10.01 @ 17:49:58 Sessions 5 Manual Loads 0 Difficulty Rogue Special Mode None Game No. 85 Rogue 49 Adventurer 4 Explorer 32 Win Type - Total 32 Types 14/5/4/2/2/3/1/0/1 Lore% 91 Gallery% 89 Achievement% 86 Wizard Run 0 Options --------- ASCII 0 Keyboard 1 Movement Vi Keybinds 0 Fullscreen 2 Font 24/Proggy Map View 76x50 Tactical HUD 1 Map Filters NONE Filters NONE Steam 1 RUN: 142109c4-a419-443a-b7e5-f54f3cd5cedb